Cogmind - Beta 13 @@@ ROGUE MODE // 2024.04.10 @ 22:37:21 Player: gabr Result: Destroyed by P-60 Hacker with Shock Rifle Performance ------------- Evolutions (0) 0 Regions Visited (4) 800 Robots Destroyed (34) 170 Value Destroyed (457) 457 Prototype IDs (0) 0 Alien Tech Used (0) 0 Bonus (7) 7 TOTAL SCORE: 1434 Bonus ------- Follower Combat Kills 7 Cogmind --------- Core Integrity 0/250 Matter 300/300 Energy 250/250 System Corruption 2% Temperature Cool (0) Movement Walking (190) Ox1 Location -7/Recycling Parts ------- > --- POWER (1) -------- Ion Engine > --- PROPULSION (2) --- Aluminum Leg > --- UTILITY (2) ------ Small Storage Unit Improved Terrain Scanner > --- WEAPON (2) ------- Subdweller Beam Cannon > --- INVENTORY (8) ---- Aluminum Leg Scrap Engine Small Storage Unit High-capacity Matter Pod (200) Light Assault Rifle Mining Laser Welding Torch Peak State ------------ > --- POWER ------------ Improved Ion Engine > --- PROPULSION ------- Aluminum Leg Aluminum Leg > --- UTILITY ---------- Small Storage Unit Improved Terrain Scanner > --- WEAPON ----------- Subdweller Beam Cannon > --- INVENTORY -------- Ion Engine Aluminum Leg Scrap Engine High-capacity Matter Pod Light Assault Rifle Mining Laser Welding Torch [Rating: 12] Favorites ----------- Power Improved Ion Engine Engine Improved Ion Engine Propulsion Aluminum Leg Leg Aluminum Leg Utility Small Storage Unit Device Improved Terrain Scanner Storage Small Storage Unit Weapon Small Laser Energy Gun Small Laser Energy Cannon Subdweller Beam Cannon Ballistic Gun Light Assault Rifle Build | -11 -10 -10 -10 -7 ------- Run | Yrd Mat Min Sub Rec Slots Evolved . | . . . . . Power . | . . . . . Propulsion . | . . . . . Utility . | . . . . . Weapon . | . . . . . Parts Attached 24 | 7 9 3 3 2 Power 5 | 1 2 1 . 1 Engine 5 | 1 2 1 . 1 Core . | . . . . . Reactor . | . . . . . Propulsion 7 | 2 2 1 2 . Treads . | . . . . . Leg 7 | 2 2 1 2 . Wheel . | . . . . . Hover . | . . . . . Flight . | . . . . . Utility 5 | 2 1 1 . 1 Device 3 | 1 1 1 . . Storage 2 | 1 . . . 1 Processor . | . . . . . Hackware . | . . . . . Protection . | . . . . . Artifact . | . . . . . Weapon 7 | 2 4 . 1 . Energy Gun 2 | . 2 . . . Energy Cannon 1 | . . . 1 . Ballistic Gun 4 | 2 2 . . . Ballistic Cannon . | . . . . . Launcher . | . . . . . Special Weapon . | . . . . . Impact Weapon . | . . . . . Slashing Weapon . | . . . . . Piercing Weapon . | . . . . . Special Melee Weapon . | . . . . . Unidentified Prototypes . | . . . . . Parts Lost 4 | . 1 . 2 1 Power . | . . . . . Propulsion 2 | . . . 1 1 Utility . | . . . . . Weapon 2 | . 1 . 1 . Highest Loss Streak 2 | . 1 . 2 1 To Critical Strikes . | . . . . . Average Slot Usage (%) 98 | . 99 100 96 85 Engine 14 | . 14 14 14 14 Leg 27 | . 28 28 27 28 Device 14 | . 14 14 14 14 Storage 14 | . 14 14 14 14 Energy Gun 12 | . 10 14 11 . Energy Cannon 2 | . . . 10 14 Ballistic Gun 12 | . 17 14 3 . Naked Turns . | . . . . . Heaviest Build 22 | 14 14 15 22 19 Greatest Support 20 | 20 20 20 20 20 Greatest Overweight (x) 2 | . . . 2 . Average Overweight (x) . | . . . . . Largest Inventory Capacity 8 | 8 8 8 8 8 Average Capacity 7 | 6 8 8 8 8 Most Carried 8 | 6 8 8 8 8 Average Carried 7 | 4 7 7 8 7 Final Capacity 8 | 8 8 8 8 8 Final Carried 8 | 6 8 8 8 8 Class Distribution -------------------- 95% | Mutant 4% | Scavenger-Mutant Dominant Class ---------------- Mutant | -10/Materials Mutant | -10/Mines Mutant | -10/Subcaves Scavenger-Mutant | -7/Recycling Resources | -11 -10 -10 -10 -7 ----------- Run | Yrd Mat Min Sub Rec Matter Collected 829 | 282 306 165 56 20 Remotely . | . . . . . Salvage Created 1226 | 11 477 433 71 234 Parts 66 | 2 26 26 4 8 Haulers Intercepted 1 | . 1 . . . Recyclers Shooed . | . . . . . Parts Field Recycled . | . . . . . Retrieved Matter . | . . . . . Parts Self-Destructed 12 | . . . 12 . Prevented . | . . . . . Kills | -11 -10 -10 -10 -7 ------- Run | Yrd Mat Min Sub Rec Combat Hostiles Destroyed 18 | . 10 6 2 . Guns 17 | . 10 6 1 . Cannons 1 | . . . 1 . Classes Destroyed 9 | 1 6 1 1 . Worker 4 | . 3 1 . . Tunneler 3 | 1 . 2 . . Hauler 1 | . 1 . . . Recycler 5 | . 1 3 . 1 Turret 2 | . . . 2 . Watcher 1 | . 1 . . . Swarmer 13 | . 6 5 2 . Grunt 4 | . 4 . . . Sentry 1 | . . 1 . . Best Kill Streak 6 | 1 6 6 4 1 Combat Bots Only 3 | . 3 3 2 . Max Kills in Single Turn 1 | 1 1 1 1 1 Gunslinging . | . . . . . Exploded . | . . . . . Melee . | . . . . . Uniques/NPCs Destroyed . | . . . . . Combat | -11 -10 -10 -10 -7 -------- Run | Yrd Mat Min Sub Rec Hostile Shots Fired 148 | . 60 30 46 12 Missed 48 | . 13 12 19 4 Damage Taken 1146 | . 514 148 363 121 Core 256 | . 109 39 77 31 Absorbed by Shields . | . . . . . Core Remaining (%) 100 | 100 . . . . Volleys Fired 93 | 3 47 26 12 5 Largest 2 | 2 2 2 2 1 Hottest 120 | 40 60 60 120 80 Shots Fired 178 | 6 91 54 22 5 Gun 161 | 6 91 54 10 . Cannon 17 | . . . 12 5 Launcher . | . . . . . Special . | . . . . . Kinetic 91 | 6 57 28 . . Thermal 87 | . 34 26 22 5 Explosive . | . . . . . Electromagnetic . | . . . . . Robot Hit Streak 8 | 5 7 8 3 3 Robot Miss Streak 3 | . 3 3 3 . Penetration Max . | . . . . . Secondary Targets 2 | . 1 1 . . Max Gunslinging Chain 1 | . 1 1 . . Shots Hit Robots 108 | 5 57 33 10 3 Core Hits 55 | 2 24 20 6 3 Critical Kills 1 | . 1 . . . Critical Parts Destroyed . | . . . . . Critical Strikes 1 | . 1 . . . Destroy 1 | . 1 . . . Melee Attacks . | . . . . . Impact . | . . . . . Slashing . | . . . . . Piercing . | . . . . . Sneak Attacks . | . . . . . Combat Hostiles . | . . . . . Follow-up Attacks . | . . . . . Damage Inflicted 1224 | 47 598 318 178 83 Guns 1030 | 47 598 318 67 . Cannons 194 | . . . 111 83 Explosions . | . . . . . Melee . | . . . . . Ramming . | . . . . . Kinetic 553 | 47 388 118 . . Thermal 671 | . 210 200 178 83 Explosive . | . . . . . Electromagnetic . | . . . . . Impact . | . . . . . Slashing . | . . . . . Piercing . | . . . . . Highest Corruption 2 | . 1 1 1 2 Average Corruption 1 | . 1 1 1 1 Corruption Purged . | . . . . . Corruption Blocked . | . . . . . Effects 24 | . . 19 4 1 Message Errors 4 | . . 3 1 . Matter Fused 7 | . . 6 1 . Heat Flow Errors 1 | . . . . 1 Energy Discharges 3 | . . 2 1 . Data Loss (minor) 4 | . . 3 1 . Data Loss (major) 2 | . . 2 . . Misfires 2 | . . 2 . . Alerts 1 | . . 1 . . Overload Shots . | . . . . . Overflow Damage . | . . . . . Projectiles . | . . . . . Explosions . | . . . . . Melee . | . . . . . Knockbacks . | . . . . . Impact . | . . . . . Kinetic . | . . . . . Secondary . | . . . . . Self-Inflicted Damage . | . . . . . Shots . | . . . . . Rammed . | . . . . . Targets Rammed . | . . . . . Kicked . | . . . . . Crushed . | . . . . . Highest Temperature 270 | . 99 44 270 120 Average Temperature 44 | . 43 18 46 49 Received Heat Transfer 672 | . 225 . 447 . Siege Activations . | . . . . . Robots Corrupted . | . . . . . Combat Hostiles . | . . . . . Parts Fried . | . . . . . Impact Corruptions . | . . . . . Robots Melted . | . . . . . Combat Hostiles . | . . . . . Parts Melted . | . . . . . Heat Transferred 1334 | . 475 450 298 111 Parts Sabotaged . | . . . . . Parts Stolen . | . . . . . Parts Stripped . | . . . . . Power Chain Reactions . | . . . . . Alert | -11 -10 -10 -10 -7 ------- Run | Yrd Mat Min Sub Rec Peak Influence 238 | 5 238 207 . 182 Initial 165 | . 3 52 . 165 Average 60 | 1 122 36 . 176 Maximum Alert Level 1 | . 1 1 . . Low Security (%) 87 | 100 87 86 . 100 Level 1 12 | . 12 13 . . Level 2 . | . . . . . Level 3 . | . . . . . Level 4 . | . . . . . Level 5 . | . . . . . High Security . | . . . . . Max Security . | . . . . . Squads Dispatched . | . . . . . Investigation . | . . . . . Extermination . | . . . . . Reinforcement . | . . . . . Assault . | . . . . . Garrison . | . . . . . Intercept . | . . . . . Searches Triggered . | . . . . . Construction Impeded . | . . . . . Haulers Reinforced . | . . . . . Active Scanning Responses . | . . . . . Cargo Convoy Interrupts . | . . . . . Stealth | -11 -10 -10 -10 -7 --------- Run | Yrd Mat Min Sub Rec Distress Signals 1 | . 1 . . . Communications Jammed . | . . . . . Distress Signals . | . . . . . Times Spotted 40 | . 16 7 15 2 Peak Tracking Total 5 | . 5 4 2 2 Tactical Retreats 3 | . 1 . 2 . Traps | -11 -10 -10 -10 -7 ------- Run | Yrd Mat Min Sub Rec Traps Triggered 1 | . 1 . . . Indirectly . | . . . . . Trap Hack Attempts . | . . . . . Triggered . | . . . . . Disarmed . | . . . . . Reprogrammed . | . . . . . Reused . | . . . . . Traps Extracted . | . . . . . Installed . | . . . . . Triggered . | . . . . . Machines | -11 -10 -10 -10 -7 ---------- Run | Yrd Mat Min Sub Rec Machines Disabled 2 | . . . 2 . Max in Single Turn 1 | . . . 1 . Machines Repaired . | . . . . . Machines Dismantled . | . . . . . Machines Sabotaged . | . . . . . Overloaded Fab Kills . | . . . . . Hacking | -11 -10 -10 -10 -7 --------- Run | Yrd Mat Min Sub Rec Machines Accessed 7 | . 5 1 1 . Terminals 5 | . 5 . . . Fabricators . | . . . . . Repair Stations . | . . . . . Recycling Units . | . . . . . Scanalyzers . | . . . . . Garrison Access . | . . . . . Total Hacks 11 | . 9 1 1 . Successful 7 | . 5 1 1 . Failed 4 | . 4 . . . Catastrophic 1 | . 1 . . . Database Lockouts . | . . . . . Manual 7 | . 7 . . . Terminals 9 | . 9 . . . Fabricators . | . . . . . Repair Stations . | . . . . . Recycling Units . | . . . . . Scanalyzers . | . . . . . Garrison Access . | . . . . . Terminal Hacks 7 | . 5 1 1 . Record 1 | . . . 1 . Open Door 1 | . . 1 . . Level Access Points 1 | . 1 . . . Branch Access Points 1 | . 1 . . . Zone Layout 3 | . 3 . . . Fabricator Hacks . | . . . . . Repair Station Hacks . | . . . . . Recycling Unit Hacks . | . . . . . Scanalyzer . | . . . . . Garrison Access Hacks . | . . . . . Unauthorized Hacks . | . . . . . Terminals . | . . . . . Fabricators . | . . . . . Repair Stations . | . . . . . Recycling Units . | . . . . . Scanalyzers . | . . . . . Garrison Access . | . . . . . Data Cores Recovered . | . . . . . Used . | . . . . . Hacking Detections 4 | . 4 . . . Full Trace Events 2 | . 2 . . . Feedback Events 1 | . 1 . . . Corruption 1 | . 1 . . . Feedback Blocked . | . . . . . Robot Schematics Acquired . | . . . . . Robots Built . | . . . . . Authchips . | . . . . . Time . | . . . . . Total Robot Build Rating . | . . . . . Part Schematics Acquired . | . . . . . Parts Built . | . . . . . Authchips . | . . . . . Time . | . . . . . Total Part Build Rating . | . . . . . Parts Repaired . | . . . . . Time . | . . . . . Parts Recycled . | . . . . . Recycled Matter . | . . . . . Retrieved Matter . | . . . . . Retrieved Components . | . . . . . Parts Scanalyzed . | . . . . . Part Schematics Acquired . | . . . . . Parts Damaged . | . . . . . Bothacking | -11 -10 -10 -10 -7 ------------ Run | Yrd Mat Min Sub Rec Used RIF Installer . | . . . . . Robots Hacked . | . . . . . Non-combat . | . . . . . Combat . | . . . . . Robot Hacks Applied . | . . . . . Relay Couplers Released . | . . . . . Fabnet Peak Effective % . | . . . . . Robots Rewired 1 | . . . . 1 Allies Hacked . | . . . . . Hacks Repelled . | . . . . . Allies | -11 -10 -10 -10 -7 -------- Run | Yrd Mat Min Sub Rec Total Allies 4 | . . 3 . 1 Largest Group 3 | . . 3 3 1 Highest-Rated Group 40 | . . 40 40 10 Highest-Rated Ally 16 | . . 16 16 10 Total Orders . | . . . . . Ally Attacks 6 | . . . 6 . Total Damage 17 | . . . 17 . Kills 1 | . . . 1 . Allies Corrupted . | . . . . . Allies Melted . | . . . . . Intel | -11 -10 -10 -10 -7 ------- Run | Yrd Mat Min Sub Rec Robot Analysis Total . | . . . . . Derelict Logs Recovered 1 | . . 1 . . Drone Launches . | . . . . . Drone Recoveries . | . . . . . Exploration | -11 -10 -10 -10 -7 ------------- Run | Yrd Mat Min Sub Rec Turns Passed 3570 | 127 663 2114 529 137 Spaces Moved 1040 | 90 359 226 289 76 Core 10 | 10 . . . . Treads . | . . . . . Legs 1030 | 80 359 226 289 76 Wheels . | . . . . . Hover . | . . . . . Flight . | . . . . . Fastest Speed 50 | 50 120 120 120 120 Average Speed 132 | 112 120 120 167 120 Slowest Speed 260 | 120 120 120 260 120 Overloaded Moves . | . . . . . Propulsion Burnouts . | . . . . . Robots Hopped . | . . . . . Cave-ins Triggered . | . . . . . Exploration Rate (%) 26 | 5 47 39 19 20 Regions Visited 4 Branch Regions 3 Pre-discovered Areas . | . . . . . Known Exits Taken 1 | . 1 . . . Unknown Exits Taken 3 | 1 . 1 1 . Scrap Searched 1 | . . . 1 . Spaces Dug 1 | . . . . 1 Terrain Destroyed 6 | . . . 4 2 Melee . | . . . . . Projectile 6 | . . . 4 2 AOE . | . . . . . Terrain Rammed . | . . . . . Walls Destroyed . | . . . . . Machines Disabled . | . . . . . Actions | -11 -10 -10 -10 -7 --------- Run | Yrd Mat Min Sub Rec Total 3069 | 107 508 2024 312 118 Wait 1857 | 1 84 1765 7 . Move 1036 | 89 358 225 288 76 Hop . | . . . . . Pick Up 12 | 7 3 1 . 1 Fast Attach 12 | 6 3 1 2 . Attach 3 | 1 1 . . 1 Detach 1 | . 1 . . . Swap 9 | . 5 2 1 1 Drop 15 | . 6 4 2 3 Fire 93 | 3 47 26 12 5 Melee . | . . . . . Ram . | . . . . . Kick . | . . . . . Crush . | . . . . . Escape Stasis . | . . . . . Rewire 31 | . . . . 31 Trap . | . . . . . Miscellaneous . | . . . . . Route ------- -11/Scrapyard -10/Materials (discovered 4 exits: *Mat x3 / *Min) -10/Mines (discovered 3 exits: *Mat x2 / *Sub) -10/Subcaves (discovered 2 exits: [*Mat] / [*Rec]) -7/Recycling History --------- Turn | Location | Event 8 | -11/Scrapyard | Discovered new exit (range 15) 128 | -11/Scrapyard | Entered Materials 156 | -10/Materials | Identified exit to Materials 156 | -10/Materials | Identified exit to Mines 300 | -10/Materials | Build established: Mutant 791 | -10/Materials | Entered Mines 848 | -10/Mines | Discovered exit to Materials (range 6) 871 | -10/Mines | Core integrity fell below 50% 1854 | -10/Mines | Assisted by bots powering up and referring to "LRC-V3" 1908 | -10/Mines | Found the Drone Emporium 1909 | -10/Mines | Learned Materials terminal intel 2288 | -10/Mines | Discovered exit to Materials (range 16) 2882 | -10/Mines | Discovered new exit (range 6) 2905 | -10/Mines | Entered Subcaves 2905 | -10/Subcaves | Accompanied by 3 allies 2946 | -10/Subcaves | Shifting Twisted Machinery released Sub. Beam Cannon 3140 | -10/Subcaves | Discovered new exit (range 5) 3197 | -10/Subcaves | Visited Clippyterm 3331 | -10/Subcaves | Discovered new exit (range 13) 3335 | -10/Subcaves | Lost 3 allies 3433 | -10/Subcaves | Core integrity fell below 20% 3434 | -10/Subcaves | Entered Recycling 3436 | -7/Recycling | Found Unknown Device 3561 | -7/Recycling | P-60 Hacker assimilated allied Excavator 4a 3571 | -7/Recycling | Destroyed by P-60 Hacker with Shock Rifle Last Messages --------------- 03435_ Dropped Wheel. 03436_ Acquired Unknown Device. 03437_ Dropped Imp. Ion Engine. 03460_ R-06 Scavenger destroyed. 03499_ Acquired 20 matter. 03533_ Attempting to rewire T-07 Excavator. 03535_ System corrupted: Heat flow error (+130). 03536_ Attempting to rewire T-07 Excavator. 03537_ T-07 Excavator rewired. 03540_ Attempting to rewire Y-54 Guardian. 03551_ I-36 Angel springs to life. 03551_ Attempting to rewire Y-54 Guardian. 03553_ P-60 Hacker springs to life. 03554_ Attempting to rewire Y-54 Guardian. 03560_ Attempting to rewire I-36 Angel. 03561_ P-60 Hacker hacks Excavator 4a, assimilated. 03562_ Attempting to rewire I-36 Angel. 03569_ Excavator 4a reactivates. 03570_ Attempting to rewire I-36 Angel. 03571_ Aluminum Leg destroyed. Map ----- +----------------------------------------------------+ | | | | | | | | | ?????????????????????????##?????????????????#????? | | ???????????????????????????????????######??#####?# | | ?????????????????????????????#?????#!!!#???#"""### | | ???????????????????????##########?##!!!#####"Y"# # | | ???????????????????????# #?# | | ?????????????????????### ! ! #?# | | ???????????????????????# ! #?# | | ????????????????????#??# ### ############ | | ?????????????????????#?# !#?# #????#==#??? | | ???????????????????????+ #?# % ######%####? | | ?????????????? ????????#! ! !! #?# # ! #? | | ????????????????#??????# ! #?# # #? | | ??????????????????#"???# ! ! #?# + #? | | ??????????? ####"Y"####+##+##### # #? | | ??????????? # #? | | ??????????? + ## | | ??????????? # ## | | ??????????? ##############t##### # = #? | | ????????????????????????# Y !! t# ####%######? | | ???????????????????#?#??# r u d# #?####???#?? | | ?????????????????????#??# s=p i# #???#??????? | | ????????????????? ??????#@gb % l # ##?????????? | | ????????????????????????#i i !!# ##???##????? | | ????????????????????????# [ # #?#????????? | | ????????????????????????#l !tks # #??????????? | | ????????????????????#???#g # #??????????# | | ????????????????????????########### #??????????? | | ??????????????????????????#???????# #? ????????? | | ??????????????????????????????????# #????????#?? | | ??????????????????????????????????? #?????? ???? | | ??????????????????????????#???????? ???????????? | | ?????????????????????????????????????????????????? | | ????????????????????????#???#????????????????????? | | ?????????????????????????????????????????????????? | | ?????????????????????????????????????????????????? | | ?????????????????????????????????????????????????? | | ?????????????????????????????????????????????????? | | ?????????????????????????????????????????????????? | | ?????????????????????????????????????????????????? | | ?????????????????????????????????????????????????? | | ?????????????????????????????????????????????????? | | ?????????????????????????????????????????????????? | | ?????????????????????????????????????????????????? | | ?????????????????????????????????????????????????? | | ?????????????????????????????????????????????????? | | ?????????????????????????????????????????????????? | +----------------------------------------------------+ Best States ------------- Heat Dissipation 39 Energy Generation 12 Energy Capacity 265 Matter Stores 300 Matter Capacity 300 Sight Range 16 Terrain Scan Range 16 Terrain Scan Density 10 Evasion (%) 55 Item Schematics ----------------- None Robot Schematics ------------------ None Fabricated ------------ Nothing Alien Tech Used ----------------- None Achievements -------------- None Challenges ------------ None Game ------ Seed NeutrinoSystemBox Manual? 0 Play Time 00:12:56 Cumulative 81.3 hours Start 2024.04.10 @ 22:19:47 End 2024.04.10 @ 22:37:21 Sessions 1 Manual Loads 0 Difficulty Rogue Special Mode None Game No. 170 Rogue 170 Adventurer 0 Explorer 0 Win Type - Total 0 Types 0/0/0/0/0/0/0/0/0 Lore% 28 Gallery% 44 Achievement% 32 Wizard Run 0 Options --------- Layout 0 ASCII 0 Keyboard 1 Movement Numpad Keybinds 0 Fullscreen 1 Font 24/Terminus Map View 76x50 Zoom Use 0% Tactical HUD 1 Map Filters NONE Filters NONE Steam 1 RUN: f1f41a79-5a51-4c62-b60a-d22d539869df